bitfinex/quotes_ETHUSD_20250322
["timestamp","ask_amount","ask_price","bid_price","bid_amount"]
[1742687067678,0.13034174,1980.5,1980.3,5.554439]
[1742687068054,0.13034174,1980.5,1980.4,5.04948]
[1742687068471,18.21119802,1980.8,1980.4,5.04948]
[1742687068672,0.12974576,1980.7,1980.4,5.04948]
[1742687070011,0.12974576,1980.7,1980.5,5.04907]
[1742687070296,0.12974576,1980.7,1980.6,26.699]
[1742687071086,2.71886459,1980.7,1980.6,26.699]
[1742687071752,7.76758459,1980.7,1980.6,26.699]
[1742687072068,8.56468459,1980.7,1980.6,26.699]
[1742687075007,5.04907,1980.6,1980.4,26.698]
[1742687075197,7.63818883,1980.6,1980.4,29.4182949]
[1742687075396,0.12037474,1980.5,1980.4,29.4182949]
[1742687082818,5.16959474,1980.5,1980.4,29.4182949]
[1742687083112,5.16959474,1980.5,1980.4,26.698]
[1742687084716,0.12037474,1980.5,1980.4,26.698]
[1742687087381,5.84583,1980.7,1980.4,26.698]
[1742687087582,0.11948073,1980.5,1980.4,26.698]
[1742687087820,8.43494883,1980.7,1980.4,26.698]
[1742687088334,0.11948073,1980.6,1980.4,26.698]
[1742687088532,0.11948073,1980.6,1980.4,30.377723]
[1742687091736,0.11948073,1980.6,1980.5,26.697]
[1742687097234,7.75756956,1980.6,1980.5,26.697]
[1742687098219,2.70859956,1980.6,1980.5,26.697]
[1742687098757,0.11948073,1980.6,1980.5,26.697]
[1742687099051,0.11948073,1980.6,1980.5,34.68042]
[1742687099465,2.58911883,1980.8,1980.5,34.68042]
[1742687099640,0.11038943,1980.6,1980.5,34.68042]
[1742687099842,2.58911883,1980.8,1980.5,34.68042]
[1742687100013,0.11030419,1980.6,1980.5,34.68042]
[1742687100217,2.58911883,1980.8,1980.5,29.3667]
[1742687100414,0.11030419,1980.6,1980.5,26.697]
[1742687100631,7.63771883,1980.8,1980.5,26.697]
[1742687100829,0.11030419,1980.6,1980.5,26.697]
[1742687101034,3.38471883,1980.6,1980.5,26.697]
[1742687101235,8.54399302,1980.6,1980.5,26.697]
[1742687102163,12.49239315,1980.6,1980.5,26.697]
[1742687103159,12.86862361,1980.6,1980.5,26.697]
[1742687103358,22.00862361,1980.6,1980.5,26.697]
[1742687104367,5.84611,1980.0,1979.9,26.695]
[1742687104664,8.43522883,1980.0,1979.9,26.695]
[1742687104827,8.54344419,1980.0,1979.9,26.695]
[1742687105162,10.27293229,1980.0,1979.9,26.695]
[1742687105535,11.30022552,1980.0,1979.9,26.695]
[1742687105929,0.10821536,1980.0,1979.9,26.695]
[1742687106130,0.7956,1980.2,1979.9,31.74576]
[1742687106363,0.10723454,1980.0,1979.9,31.74576]
[1742687106574,0.7956,1980.2,1979.9,31.74576]
[1742687106863,0.10723454,1980.0,1979.9,31.74576]
[1742687107029,0.7956,1980.2,1979.9,31.74576]
[1742687107228,0.10753307,1980.0,1979.9,35.451871]
[1742687107429,5.04979,1980.3,1979.9,35.451871]
[1742687107653,0.10753307,1980.0,1979.9,35.451871]
[1742687107859,5.04979,1980.3,1979.9,35.451871]
[1742687108172,9.36839693,1980.3,1979.9,35.451871]
[1742687108471,0.10753307,1980.2,1979.9,40.502471]
[1742687109063,0.10753307,1980.2,1980.0,5.05046]
[1742687110547,5.84515,1980.4,1980.0,5.05046]
[1742687110748,0.1080448,1980.1,1980.0,5.05046]
[1742687110953,5.84515,1980.4,1980.0,5.05046]
[1742687111165,0.1080448,1980.1,1980.0,5.05046]
[1742687111472,5.04924,1980.5,1980.1,5.05017]
[1742687111638,10.16325693,1980.6,1980.2,5.04995]
[1742687111838,11.68446662,1980.6,1980.2,5.04995]
[1742687112770,11.68458662,1980.6,1980.2,5.04995]
[1742687113071,11.68442662,1980.6,1980.2,5.04993]
[1742687113273,16.73360662,1980.6,1980.2,5.04993]
[1742687113579,5.04924,1980.5,1980.1,5.31468]
[1742687114183,5.04924,1980.5,1980.1,0.2645]
[1742687114337,9.36820693,1980.4,1980.0,5.05048]
[1742687114848,5.83534,1980.3,1979.9,32.01024]
[1742687115551,4.31860693,1980.2,1979.9,31.74574]
[1742687116337,9.36861693,1980.2,1979.9,31.74574]
[1742687116540,4.31860693,1980.2,1979.9,31.74574]
[1742687116740,4.31860693,1980.2,1979.9,40.476004]
[1742687118951,4.31860693,1980.2,1979.9,35.425264]
[1742687119287,4.31860693,1980.2,1979.9,40.475844]
[1742687119507,9.36870693,1980.2,1979.9,26.695]
[1742687119651,9.36870693,1980.2,1979.9,31.74574]
[1742687122361,4.31860693,1980.2,1979.9,31.74574]
[1742687123189,9.36816693,1980.4,1980.0,0.2645]
[1742687123484,11.97485,1980.5,1980.1,5.05014]
[1742687123664,17.02425,1980.5,1980.1,5.05014]
[1742687124079,4.31860693,1980.4,1980.1,5.05014]
[1742687124798,0.10710726,1980.3,1980.1,5.05014]
[1742687124954,4.31860693,1980.4,1980.1,6.4067451]
[1742687125155,0.10710726,1980.3,1980.1,6.4067451]
[1742687125453,9.36808693,1980.4,1980.1,6.4067451]
[1742687125658,0.10710726,1980.2,1980.0,8.515911]
[1742687125874,5.04975,1980.3,1980.0,8.515911]
[1742687126075,0.10710726,1980.1,1980.0,8.515911]
[1742687126275,5.04975,1980.3,1980.0,8.515911]
[1742687126471,0.10710726,1980.1,1980.0,8.515911]
[1742687127008,5.04975,1980.3,1980.0,8.515911]
[1742687127188,0.10710726,1980.2,1980.0,5.3149]
[1742687129075,0.10710726,1980.2,1979.9,31.74571]
[1742687129606,0.10710726,1980.2,1979.9,36.79631]
[1742687129811,0.10710726,1980.2,1980.1,0.2645]
[1742687129976,9.36813693,1980.4,1980.1,0.2645]
[1742687130176,0.10697989,1980.2,1980.1,0.2645]
[1742687130377,9.36813693,1980.4,1980.1,0.2645]
[1742687130690,0.10697989,1980.3,1980.1,0.2645]
[1742687131006,9.36813693,1980.4,1980.1,0.2645]
[1742687131209,0.10697989,1980.3,1980.1,0.2645]
[1742687131416,4.31860693,1980.4,1980.1,5.84622]
[1742687131621,0.10697989,1980.3,1980.1,5.84622]
[1742687131779,5.04928,1980.5,1980.1,10.89629]
[1742687131977,0.10697989,1980.4,1980.1,10.89629]
[1742687132618,0.10697989,1980.4,1980.2,26.7]
[1742687133317,0.10697989,1980.4,1980.2,31.74994]
[1742687134114,0.10697989,1980.4,1980.2,26.7]
[1742687134316,5.24868682,1980.4,1980.2,26.7]
[1742687134535,5.04973,1980.3,1980.2,26.7]
[1742687134878,5.15688043,1980.3,1980.2,26.7]
[1742687140930,5.97998043,1980.3,1980.2,26.7]
[1742687142235,5.05033,1980.1,1979.9,26.701]
[1742687142412,5.05033,1980.1,1979.6,5.05144]
[1742687142413,4.31860693,1979.9,1979.8,26.701]
[1742687142933,9.47613361,1979.9,1979.8,26.701]
[1742687143150,11.01100697,1979.9,1979.8,26.701]
[1742687143513,7.51440004,1979.9,1979.8,26.701]
[1742687146245,0.10676668,1979.9,1979.8,26.701]
[1742687146406,5.15752668,1979.9,1979.8,26.701]
[1742687146606,0.10676668,1979.9,1979.8,26.701]
[1742687147837,5.15752668,1979.9,1979.8,26.701]
[1742687151640,0.10676668,1979.9,1979.8,26.701]
[1742687153456,5.15752668,1979.9,1979.8,26.701]
[1742687153764,6.61019504,1979.9,1979.8,26.701]
[1742687157252,5.15752668,1979.9,1979.8,26.701]
[1742687157454,0.10676668,1979.9,1979.8,26.701]
[1742687158164,5.15752668,1979.9,1979.8,26.701]
[1742687159735,5.96122668,1979.9,1979.8,26.701]
[1742687161775,5.96122668,1979.9,1979.7,26.706]
[1742687162267,5.05101,1979.8,1979.7,26.706]
[1742687162452,5.15487693,1979.8,1979.7,26.706]
[1742687168767,11.29774755,1979.8,1979.7,26.706]
[1742687169996,0.10386693,1979.8,1979.7,26.706]
[1742687170389,10.10186,1979.9,1979.7,26.706]
[1742687170769,0.10373901,1979.8,1979.7,26.706]
[1742687170991,5.15474901,1979.8,1979.7,26.706]
[1742687175711,0.10373901,1979.8,1979.7,26.706]
[1742687175875,0.10373901,1979.8,1979.7,29.40305]
[1742687185718,5.15474901,1979.8,1979.7,29.40305]
[1742687186455,0.10373901,1979.8,1979.7,29.40305]
[1742687186654,13.47262667,1980.0,1979.7,29.40305]
[1742687186948,0.1040376,1979.8,1979.7,29.40305]
[1742687187455,5.05078,1979.9,1979.7,29.40305]
[1742687187748,0.1040376,1979.8,1979.7,29.40305]
[1742687193957,5.1550476,1979.8,1979.7,26.706]
[1742687195627,7.74616427,1979.8,1979.7,26.706]
[1742687195927,5.1550476,1979.8,1979.7,26.706]
[1742687201669,0.1040376,1979.8,1979.7,26.706]
[1742687211715,0.1040376,1979.8,1979.7,31.75727]
[1742687212005,5.04996,1980.3,1979.8,5.05084]
[1742687212306,0.09518283,1980.2,1979.8,10.10167]
[1742687212505,0.09518283,1980.2,1979.9,5.05074]
[1742687213111,2.6862995,1980.2,1979.9,5.05074]
[1742687213313,0.09518283,1980.2,1979.9,5.05074]
[1742687213613,0.09518283,1980.2,1979.9,6.060897]
[1742687214815,0.09518283,1980.2,1979.9,11.375977]
[1742687215712,0.09518283,1980.2,1979.9,6.325237]
[1742687219218,0.09518283,1980.2,1980.0,5.05037]
[1742687219419,0.09518283,1980.2,1980.0,5.05041]
[1742687219587,0.09518283,1980.2,1980.1,0.505041]
[1742687220221,0.09676224,1980.2,1980.1,27.209041]
[1742687220625,0.09676224,1980.2,1980.1,32.259221]
[1742687221121,0.0968476,1980.2,1980.1,27.209041]
[1742687221323,5.04953,1980.4,1980.1,27.209041]
[1742687221523,0.0968476,1980.2,1980.1,27.209041]
[1742687221726,5.04953,1980.4,1980.1,32.259271]
[1742687222020,0.0968476,1980.2,1980.1,32.259271]
[1742687222519,5.04953,1980.4,1980.1,32.259271]
[1742687222725,0.0968476,1980.2,1980.1,32.259271]
[1742687222927,5.04953,1980.4,1980.1,27.209041]
[1742687223129,0.0968476,1980.2,1980.1,27.209041]
[1742687223423,5.04953,1980.4,1980.1,27.209041]
[1742687223619,0.09919518,1980.2,1980.1,27.209041]
[1742687223821,5.04953,1980.4,1980.1,27.209041]
[1742687224121,7.64034667,1980.5,1980.1,32.523691]
[1742687224326,0.09919518,1980.3,1980.1,32.523691]
[1742687224529,5.04923,1980.5,1980.1,32.523691]
[1742687224728,0.8191,1980.6,1980.3,5.04961]
[1742687225022,5.86817,1980.6,1980.2,5.0499]
[1742687225327,8.45928667,1980.6,1980.3,0.50499]
[1742687226227,2.59111667,1980.5,1980.3,0.50499]
[1742687227105,8.45928667,1980.6,1980.3,0.50499]
[1742687227316,2.59111667,1980.5,1980.3,0.50499]
[1742687227717,7.64042667,1980.5,1980.1,32.523761]
[1742687228021,7.64042667,1980.5,1980.1,37.573831]
[1742687229027,7.64042667,1980.5,1980.1,32.523611]
[1742687229827,0.09919518,1980.4,1980.1,32.523611]
[1742687230433,0.09919518,1980.4,1980.1,37.573731]
[1742687230595,0.09919518,1980.4,1980.2,3.7573731]
[1742687232495,5.85853,1980.3,1980.1,27.209041]
[1742687232700,0.09945122,1980.2,1980.1,27.209041]
[1742687233000,2.69056789,1980.2,1980.1,27.209041]
[1742687233536,0.09945122,1980.2,1980.1,27.209041]
[1742687234913,2.69056789,1980.2,1980.1,26.704]
[1742687235430,7.74055789,1980.2,1980.1,26.704]
[1742687237140,0.09945122,1980.2,1980.1,31.75424]
[1742687237316,0.09945122,1980.2,1980.1,26.704]
[1742687237517,0.09945122,1980.2,1980.1,30.384482]
[1742687238942,7.64069667,1980.4,1980.1,35.434722]
[1742687239144,0.09889638,1980.2,1980.1,35.434722]
[1742687239513,7.64069667,1980.4,1980.1,35.434722]
[1742687239726,0.09889638,1980.3,1980.1,35.434722]
[1742687239912,7.64069667,1980.4,1980.1,35.434722]
[1742687240111,0.09889638,1980.3,1980.1,35.434722]
[1742687240441,3.49871305,1980.2,1980.1,30.384482]
[1742687240646,3.49871305,1980.2,1980.1,26.704]
[1742687243924,2.69001305,1980.2,1980.1,26.704]
[1742687244250,3.49871305,1980.2,1980.1,26.704]
[1742687244666,8.54870305,1980.2,1980.1,26.704]
[1742687245022,11.92639979,1980.2,1980.1,26.704]
[1742687245220,13.62401577,1980.2,1980.1,26.704]
[1742687245421,16.21513244,1980.2,1980.1,26.704]
[1742687245719,13.62401577,1980.2,1980.1,26.704]
[1742687245917,16.21513244,1980.2,1980.1,26.704]
[1742687248063,5.81017,1979.7,1979.5,26.702]
[1742687248357,2.68864733,1979.6,1979.5,26.702]
[1742687249156,0.09753066,1979.6,1979.5,26.702]
[1742687249554,0.09753066,1979.6,1979.5,29.3722]
[1742687249937,15.18093355,1979.8,1979.5,29.3722]
[1742687250149,5.14668074,1979.7,1979.5,26.702]
[1742687251759,5.05137,1979.7,1979.5,26.702]
[1742687253052,0.7588,1979.8,1979.5,26.702]
[1742687253239,5.8099,1979.8,1979.5,26.702]
[1742687254056,5.05078,1979.9,1979.5,32.01814]
[1742687254253,5.05078,1979.9,1979.5,35.725156]
[1742687254458,5.05078,1979.9,1979.5,40.776816]
[1742687254660,5.05078,1979.9,1979.5,35.725156]
[1742687254866,5.07869355,1980.0,1979.5,30.673516]
[1742687255038,9.37039355,1980.0,1979.6,7.22672812]
[1742687255238,9.37039355,1980.0,1979.6,12.27811812]
[1742687256858,4.31989355,1980.0,1979.7,5.05116]
[1742687257045,11.1903,1980.1,1979.8,5.31549]
[1742687257253,5.0503,1980.1,1979.8,5.31549]
[1742687257565,5.0503,1980.1,1979.8,6.352155]
[1742687257953,5.0503,1980.1,1979.8,1.301165]
[1742687258468,10.1008,1980.1,1979.8,1.301165]
[1742687258766,5.0503,1980.1,1979.8,1.301165]
[1742687259258,10.10074,1980.1,1979.8,1.301165]
[1742687259461,5.05059,1980.0,1979.6,7.22697812]
[1742687259632,5.05059,1980.0,1979.6,7.49147812]
[1742687260163,5.05059,1980.0,1979.6,12.54285812]
[1742687260461,5.05059,1980.0,1979.6,7.49133812]
[1742687260763,5.05059,1980.0,1979.6,12.54276812]
[1742687260966,5.05059,1980.0,1979.7,6.30550681]
[1742687261370,0.09475572,1979.9,1979.7,6.30550681]
[1742687265072,0.09475572,1979.9,1979.8,26.705]
[1742687265671,0.09475572,1979.9,1979.8,36.34040355]
[1742687265868,0.7614,1980.5,1980.2,5.04986]
[1742687266042,10.09828,1980.6,1980.2,5.04986]
[1742687266855,10.09824,1980.6,1980.2,5.04986]
[1742687267659,5.04958,1980.4,1980.1,0.2645]
[1742687267859,5.04958,1980.4,1980.0,5.05043]
[1742687268475,5.04958,1980.4,1980.0,10.10078]
[1742687269896,5.04958,1980.4,1980.0,5.05035]
[1742687270082,5.04958,1980.4,1980.1,5.05022]
[1742687270283,5.04958,1980.4,1980.1,6.060277]
[1742687271679,5.81068,1980.5,1980.1,6.324777]
[1742687272053,5.04928,1980.5,1980.1,6.324627]
[1742687272248,5.04928,1980.5,1980.1,6.37512371]
[1742687272451,5.04928,1980.5,1980.2,0.63751237]
[1742687273184,5.81012,1980.7,1980.3,5.04964]
[1742687273583,5.04847,1980.8,1980.4,5.31397]
[1742687273790,5.04877,1980.7,1980.4,5.31397]
[1742687275387,5.04877,1980.7,1980.5,26.7]
[1742687276600,5.04877,1980.7,1980.5,29.68062794]
[1742687280304,5.87247,1980.6,1980.5,26.7]
[1742687285610,5.04897,1980.6,1980.5,26.7]
[1742687286109,5.04877,1980.7,1980.5,26.7]
[1742687288112,5.87196,1980.8,1980.5,26.7]
[1742687288314,5.87196,1980.8,1980.6,2.67]
[1742687288487,5.04846,1980.8,1980.6,2.67]
[1742687292296,5.04832,1980.9,1980.6,2.67]
[1742687293128,7.63701409,1980.9,1980.6,2.67]
[1742687293428,12.68542409,1980.9,1980.6,2.67]
[1742687293616,5.04848,1980.8,1980.6,2.67]
[1742687294396,7.63717409,1980.8,1980.6,2.67]
[1742687295297,7.63717409,1980.8,1980.5,26.7]
[1742687298934,5.04848,1980.8,1980.5,26.7]
[1742687299531,5.04848,1980.8,1980.5,31.74922]
[1742687302533,5.04848,1980.8,1980.5,26.7]
[1742687303433,7.63717409,1980.8,1980.5,26.7]
[1742687303632,8.9057235,1980.8,1980.5,26.7]
[1742687304235,8.9057235,1980.8,1980.6,26.695]
[1742687305430,13.9543735,1980.8,1980.6,26.695]
[1742687305602,7.63717409,1980.8,1980.6,26.695]
[1742687313841,5.86138,1980.8,1980.6,26.695]
[1742687317145,5.04824,1980.9,1980.6,26.695]
[1742687317351,8.86092,1981.0,1980.6,31.74387]
[1742687317563,11.44961409,1981.0,1980.6,31.74387]
[1742687317733,5.04824,1980.9,1980.6,35.423171]
[1742687320753,8.04808,1981.0,1980.7,0.2645]
[1742687320955,10.63677409,1981.0,1980.7,0.2645]
[1742687321156,2.58869409,1980.9,1980.7,0.2645]
[1742687321457,10.63677409,1981.0,1980.7,0.2645]
[1742687322821,15.68496409,1981.0,1980.7,0.2645]
[1742687324058,2.58869409,1980.9,1980.7,0.2645]
[1742687324656,7.63692409,1980.9,1980.7,0.2645]
[1742687324970,7.63692409,1980.9,1980.6,35.423171]
[1742687326627,5.04739,1981.3,1980.6,35.423171]
[1742687326628,6.14,1981.5,1981.2,5.04729]
[1742687326824,6.45835733,1981.6,1981.2,10.09471]
[1742687327028,9.04705142,1981.6,1981.2,5.04731]
[1742687327551,7.63540409,1981.5,1981.2,5.04731]
[1742687327745,5.04671,1981.5,1981.2,6.056809]
[1742687327965,2.58869409,1981.4,1981.1,5.04768]
[1742687329167,7.63572409,1981.4,1981.0,5.31244]
[1742687329466,7.63649409,1981.1,1980.8,0.2645]
[1742687329763,12.68439409,1981.1,1980.7,5.60430375]
[1742687329977,13.46469409,1981.1,1980.8,0.56043037]
[1742687330467,13.46470409,1981.1,1980.8,0.56043037]
[1742687331271,10.87601,1981.1,1980.8,0.56043037]
[1742687331568,5.04795,1981.0,1980.8,0.56043037]
[1742687331746,5.04795,1981.0,1980.7,0.55560375]
[1742687333070,5.04795,1981.0,1980.7,5.60425375]
[1742687333670,5.04795,1981.0,1980.7,0.55560375]
[1742687333834,5.0483,1980.9,1980.6,30.638801]
[1742687334039,5.0483,1980.9,1980.6,26.9595]
[1742687337493,5.0483,1980.9,1980.6,26.695]
[1742687337672,5.844,1980.9,1980.6,26.695]
[1742687338944,5.04855,1980.8,1980.6,26.695]
[1742687339882,0.7957,1980.9,1980.6,26.695]
[1742687340179,10.09614,1981.0,1980.7,2.6695]
[1742687340382,5.04832,1980.9,1980.6,26.695]
[1742687342983,5.04799,1981.0,1980.6,31.74394]
[1742687344184,0.00247248,1980.9,1980.6,31.74394]
[1742687345080,5.05078248,1980.9,1980.6,26.695]
[1742687345267,0.00247248,1980.9,1980.6,31.74386]
[1742687346257,0.00247248,1980.9,1980.7,26.691]
[1742687346458,0.00247248,1980.9,1980.7,29.864986]
[1742687349601,0.00247248,1980.9,1980.7,35.178096]
[1742687351073,0.00247248,1980.9,1980.8,26.691]
[1742687355592,0.00247248,1980.9,1980.8,34.32735937]
[1742687355798,0.00247248,1980.9,1980.8,34.59185937]
[1742687355986,0.00247248,1980.9,1980.8,37.30034749]
[1742687362130,0.00247248,1980.9,1980.8,37.85034749]
[1742687364693,0.00247248,1980.9,1980.8,38.22898296]
[1742687369333,0.00247248,1980.9,1980.8,41.22898296]
[1742687378228,2.48e-06,1980.9,1980.8,46.81688233]
[1742687379097,2.48e-06,1980.9,1980.8,44.22898296]
[1742687382028,2.48e-06,1980.9,1980.8,54.47898296]
[1742687382742,2.48e-06,1980.9,1980.8,51.47898296]
[1742687387954,2.48e-06,1980.9,1980.8,41.22898296]
[1742687389416,0.7894,1981.7,1981.6,5.04642]
[1742687389660,0.7894,1981.7,1981.6,31.72642]
[1742687391969,0.7894,1982.0,1981.9,5.04551]
[1742687392989,0.7894,1982.0,1981.8,5.04574]
[1742687393181,0.7894,1982.0,1981.8,10.0915]
[1742687394143,0.7894,1982.0,1981.9,5.04566]
[1742687395497,0.8225,1982.2,1982.0,10.09052]
[1742687395806,0.8225,1982.2,1982.0,11.099572]
[1742687396113,0.8225,1982.2,1982.0,6.054392]
[1742687396458,0.8225,1982.2,1982.0,11.099642]
[1742687396783,0.8225,1982.2,1982.1,5.04515]
[1742687399092,0.8225,1982.2,1982.0,11.099532]
[1742687399394,0.8225,1982.2,1982.1,5.04515]
[1742687399562,0.8225,1982.2,1982.1,6.04497316]
[1742687400261,0.8225,1982.2,1982.1,7.25489868]
[1742687404972,0.7805,1982.4,1982.1,12.30004868]
[1742687405662,0.7805,1982.4,1982.2,5.04487]
[1742687406315,0.7805,1982.4,1982.3,26.673]
[1742687406668,3.36839937,1982.4,1982.3,26.673]
[1742687408425,0.7805,1982.4,1982.3,26.673]
[1742687408882,3.36839937,1982.4,1982.3,26.673]
[1742687410722,11.84194368,1982.4,1982.3,26.673]
[1742687413121,10.97489315,1982.4,1982.3,26.673]
[1742687420637,5.83151,1982.2,1982.1,26.672]
[1742687428843,0.7866,1982.2,1982.1,26.672]
[1742687429209,5.04468,1982.3,1982.1,26.672]
[1742687430358,10.16542821,1982.4,1982.2,26.672]
[1742687430644,4.30874821,1982.4,1982.2,26.672]
[1742687431342,0.25280564,1982.3,1982.2,26.672]
[1742687431743,9.35318821,1982.4,1982.2,26.672]
[1742687431918,1.06500564,1982.3,1982.2,26.672]
[1742687433135,3.65004504,1982.3,1982.2,26.672]
[1742687433512,8.69468504,1982.3,1982.2,26.672]
[1742687436547,10.32710148,1982.3,1982.2,26.672]
[1742687437214,9.51490148,1982.3,1982.2,26.672]
[1742687437533,10.32710148,1982.3,1982.2,26.672]
[1742687439153,12.05116795,1982.3,1982.2,26.672]
[1742687443954,7.74206208,1982.3,1982.2,26.672]
[1742687448551,6.10964564,1982.3,1982.2,26.672]
[1742687448860,5.29744564,1982.3,1982.2,26.672]
[1742687451459,6.12574564,1982.3,1982.2,26.672]
[1742687454172,5.04532,1982.1,1982.0,26.674]
[1742687454371,9.35442587,1982.1,1982.0,26.674]
[1742687454577,9.61645099,1982.1,1982.0,26.674]
[1742687461265,7.89301844,1982.1,1982.0,26.674]
[1742687463203,2.84769844,1982.1,1982.0,26.674]
[1742687463357,2.84769844,1982.1,1982.0,29.36785]
[1742687465631,7.89284844,1982.1,1982.0,26.674]
[1742687465984,2.84769844,1982.1,1982.0,26.674]
[1742687467201,4.57108812,1982.1,1982.0,26.674]
[1742687469489,9.61623812,1982.1,1982.0,26.674]
[1742687476740,10.38263812,1982.1,1982.0,26.674]
[1742687480945,9.61623812,1982.1,1982.0,26.674]
[1742687482023,4.57108812,1982.1,1982.0,26.674]
[1742687482546,9.61623812,1982.1,1982.0,26.674]
[1742687485134,9.61623812,1982.1,1982.0,29.36785]
[1742687487635,4.57108812,1982.1,1982.0,29.36785]
[1742687487961,0.26202512,1982.1,1982.0,29.36785]
[1742687488336,0.26117244,1982.1,1982.0,29.36785]
[1742687488870,14.398553,1982.3,1982.0,29.36785]
[1742687489076,0.26130034,1982.1,1982.0,29.36785]
[1742687489377,7.62966172,1982.3,1982.1,0.2645]
[1742687489546,7.62966172,1982.3,1982.1,3.227735]
[1742687490135,2.58495172,1982.2,1982.1,3.227735]
[1742687492081,7.62984172,1982.2,1982.1,2.963235]
[1742687492369,7.62984172,1982.2,1982.0,26.674]
[1742687492370,12.67493172,1982.2,1982.0,26.674]
[1742687492673,7.62984172,1982.2,1982.0,26.674]
[1742687492974,2.58495172,1982.1,1982.0,26.674]
[1742687493177,4.30858623,1982.1,1982.0,26.674]
[1742687498172,9.35373623,1982.1,1982.0,26.674]
[1742687499851,4.57180507,1982.1,1982.0,26.674]
[1742687500875,9.61695507,1982.1,1982.0,26.674]
[1742687501859,4.57180507,1982.1,1982.0,26.674]
[1742687502972,11.08313158,1982.1,1982.0,26.674]
[1742687503274,11.83433158,1982.1,1982.0,26.674]
[1742687506582,12.21804827,1982.1,1982.0,26.674]
[1742687510691,15.21804827,1982.1,1982.0,26.674]
[1742687511461,13.36815507,1982.1,1982.0,26.674]
[1742687511771,12.61695507,1982.1,1982.0,26.674]
[1742687513498,9.61695507,1982.1,1982.0,26.674]
[1742687520615,4.57180507,1982.1,1982.0,26.674]
[1742687522708,0.26321884,1982.1,1982.0,26.9385]
[1742687522878,0.26321884,1982.1,1982.0,29.63235]
[1742687523083,5.04495,1982.2,1982.0,29.63235]
[1742687523287,0.26040495,1982.1,1982.0,29.63235]
[1742687523611,9.35346623,1982.3,1982.0,29.63235]
[1742687523817,0.26040495,1982.2,1982.1,2.963235]
[1742687525217,0.26040495,1982.2,1982.1,8.008385]
[1742687525381,5.04464,1982.3,1982.1,2.963235]
[1742687525712,0.26040495,1982.2,1982.1,2.963235]
[1742687526415,9.35305623,1982.4,1982.1,3.227735]
[1742687526714,0.26040495,1982.3,1982.2,0.3227735]
[1742687527118,9.35305623,1982.4,1982.2,0.3227735]
[1742687527315,0.26040495,1982.3,1982.2,0.3227735]
[1742687527718,9.35305623,1982.4,1982.2,0.3227735]
[1742687527915,0.26040495,1982.3,1982.2,0.3227735]
[1742687528224,9.35305623,1982.4,1982.2,0.3227735]
[1742687528423,0.26040495,1982.3,1982.2,0.3227735]
[1742687528620,4.30858623,1982.4,1982.2,0.3227735]
[1742687528803,0.26040495,1982.3,1982.2,0.3227735]
[1742687529002,4.30858623,1982.4,1982.2,0.3227735]
[1742687529203,0.26219554,1982.3,1982.2,0.3227735]
[1742687529399,4.30858623,1982.4,1982.2,0.3227735]
[1742687529604,0.26219554,1982.3,1982.2,0.3227735]
[1742687529803,4.30858623,1982.4,1982.2,0.3227735]
[1742687530021,0.26219554,1982.3,1982.2,0.3227735]
[1742687530223,4.30858623,1982.4,1982.2,0.3227735]
[1742687530435,0.26219554,1982.3,1982.2,0.3227735]
[1742687530615,4.30858623,1982.4,1982.2,0.3227735]
[1742687530817,0.26219554,1982.3,1982.2,0.3227735]
[1742687531124,2.58439824,1982.3,1982.2,0.3227735]
[1742687531323,2.84659378,1982.3,1982.2,0.3227735]
[1742687536535,0.26219554,1982.3,1982.2,0.3227735]
[1742687536735,2.84659378,1982.3,1982.2,0.3227735]
[1742687537808,0.26219554,1982.3,1982.2,5.3676635]
[1742687538015,2.58439824,1982.5,1982.3,0.2645]
[1742687538328,2.58439824,1982.5,1982.3,0.82771635]
[1742687538329,0.26219554,1982.4,1982.3,0.82771635]
[1742687538809,0.26219554,1982.4,1982.3,0.2645]
[1742687539014,2.84659378,1982.4,1982.3,0.2645]
[1742687540735,2.84659378,1982.4,1982.3,26.9355]
[1742687543411,0.26219554,1982.4,1982.3,26.9355]
[1742687548539,0.26219554,1982.4,1982.3,31.98014]
[1742687548846,7.62804824,1982.7,1982.3,39.62124562]
[1742687549011,0.24269178,1982.6,1982.3,39.62124562]
[1742687549210,0.24269178,1982.6,1982.4,5.04435]
[1742687549955,0.24269178,1982.6,1982.4,10.08861]
[1742687550157,0.24269178,1982.6,1982.4,5.04426]
[1742687550362,0.24269178,1982.6,1982.5,0.504426]
[1742687550515,0.24269178,1982.6,1982.5,5.813056]
[1742687550842,2.58439824,1982.8,1982.5,5.813056]
[1742687551030,0.24324725,1982.7,1982.5,5.813056]
[1742687551233,0.24324725,1982.7,1982.5,5.812876]
[1742687551436,0.24324725,1982.7,1982.6,0.5812876]
[1742687552246,0.24324725,1982.7,1982.6,5.6251676]
[1742687552641,2.82764549,1982.7,1982.6,0.5812876]
[1742687553246,2.82764549,1982.7,1982.3,34.57654562]
[1742687553247,7.87137549,1982.7,1982.3,34.57654562]
[1742687553447,2.58439824,1982.5,1982.3,34.57654562]
[1742687553647,0.24380266,1982.4,1982.3,34.57654562]
[1742687553832,0.24380266,1982.4,1982.3,34.31204562]
[1742687554039,0.24380266,1982.4,1982.3,35.33432237]
[1742687554730,2.58439824,1982.6,1982.3,35.59876237]
[1742687554918,2.58439824,1982.7,1982.4,8.3303085]
[1742687555255,5.04312,1982.9,1982.5,5.04396]
[1742687555548,2.58439824,1982.7,1982.5,5.04396]
[1742687558677,2.58439824,1982.6,1982.4,3.2860085]
[1742687559747,2.58439824,1982.6,1982.5,26.666]
[1742687560467,2.58439824,1982.6,1982.5,29.26246562]
[1742687561464,2.58439824,1982.7,1982.5,34.30659562]
[1742687564487,2.58439824,1982.8,1982.5,34.30659562]
[1742687564855,5.0432,1982.9,1982.5,39.35055562]
[1742687565055,5.0432,1982.9,1982.5,39.61505562]
[1742687565056,2.58439824,1982.8,1982.5,39.61505562]